[Event "Early-Titled-Tuesday-Blitz-October-17-2023"]
[Site "Chess.com"]
[Date "2023.10.17"]
[Round "7"]
[White "Fan_Of_Chucky"]
[Black "Sadykov_Ramil"]
[Result "0-1"]
[WhiteElo "2490"]
[BlackElo "2616"]
[TimeControl "180+1"]
[EndTime "9:20:44 PDT"]
[Termination "Sadykov_Ramil won on time"]

1. d4 {[%clk 0:03:00.9]} 1... Nf6 {[%clk 0:02:59.1]} 2. c4 {[%clk 0:03:00.4]}
2... e6 {[%clk 0:02:59.4]} 3. Nf3 {[%clk 0:02:54.3]} 3... b6 {[%clk 0:02:58.6]}
4. g3 {[%clk 0:02:46.5]} 4... Ba6 {[%clk 0:02:55.9]} 5. b3 {[%clk 0:02:40.3]}
5... Bb4+ {[%clk 0:02:53.3]} 6. Bd2 {[%clk 0:02:37.9]} 6... Be7 {[%clk
0:02:53.6]} 7. Bg2 {[%clk 0:02:36.2]} 7... c6 {[%clk 0:02:49.9]} 8. O-O {[%clk
0:02:30.7]} 8... O-O {[%clk 0:02:49.6]} 9. Qc2 {[%clk 0:02:28.4]} 9... d5 {[%clk
0:02:49.4]} 10. Ne5 {[%clk 0:02:16.9]} 10... Nfd7 {[%clk 0:02:43.9]} 11. Nxd7
{[%clk 0:01:57]} 11... Nxd7 {[%clk 0:02:42.4]} 12. e4 {[%clk 0:01:56.6]} 12...
Rc8 {[%clk 0:02:38.3]} 13. Be3 {[%clk 0:01:44.9]} 13... Bf6 {[%clk 0:01:37.2]}
14. e5 {[%clk 0:01:10.5]} 14... Be7 {[%clk 0:01:33.3]} 15. Rd1 {[%clk
0:01:00.4]} 15... f6 {[%clk 0:01:18.7]} 16. exf6 {[%clk 0:00:55.4]} 16... Bxf6
{[%clk 0:01:16.6]} 17. Nd2 {[%clk 0:00:53.2]} 17... e5 {[%clk 0:01:11.5]} 18.
Nf3 {[%clk 0:00:25.7]} 18... e4 {[%clk 0:01:07]} 19. Nd2 {[%clk 0:00:25.1]}
19... c5 {[%clk 0:01:00.5]} 20. Nf1 {[%clk 0:00:22.4]} 20... dxc4 {[%clk
0:00:48.6]} 21. Qxe4 {[%clk 0:00:17.5]} 21... c3 {[%clk 0:00:32.6]} 22. Rac1
{[%clk 0:00:15.5]} 22... cxd4 {[%clk 0:00:23]} 23. Bxd4 {[%clk 0:00:15.3]} 23...
Bxd4 {[%clk 0:00:18.8]} 24. Rxd4 {[%clk 0:00:02]} 24... Qf6 {[%clk 0:00:09.2]}
0-1

[Event "Early-Titled-Tuesday-Blitz-October-17-2023"]
[Site "Chess.com"]
[Date "2023.10.17"]
[Round "7"]
[White "nitpicker"]
[Black "Casper"]
[Result "0-1"]
[WhiteElo "2250"]
[BlackElo "2396"]
[TimeControl "180+1"]
[EndTime "9:20:44 PDT"]
[Termination "Casper won on time"]

1. d4 {[%clk 0:03:00.9]} 1... Nf6 {[%clk 0:02:58.6]} 2. c4 {[%clk 0:03:00.7]}
2... g6 {[%clk 0:02:59.5]} 3. Nc3 {[%clk 0:02:59.9]} 3... Bg7 {[%clk 0:03:00.2]}
4. e4 {[%clk 0:02:59.9]} 4... O-O {[%clk 0:03:01.1]} 5. Be2 {[%clk 0:02:59.7]}
5... c5 {[%clk 0:03:01.5]} 6. d5 {[%clk 0:02:52.7]} 6... e6 {[%clk 0:03:01.6]}
7. Nf3 {[%clk 0:02:45.8]} 7... d6 {[%clk 0:03:01.9]} 8. dxe6 {[%clk 0:02:35.5]}
8... fxe6 {[%clk 0:02:57.9]} 9. h3 {[%clk 0:02:30.4]} 9... Nc6 {[%clk
0:02:57.8]} 10. Be3 {[%clk 0:02:24.3]} 10... e5 {[%clk 0:02:31.7]} 11. Qd2
{[%clk 0:01:52.9]} 11... Nd4 {[%clk 0:02:25.4]} 12. Bd1 {[%clk 0:01:52.7]} 12...
Be6 {[%clk 0:02:18.4]} 13. b3 {[%clk 0:01:51.1]} 13... Nh5 {[%clk 0:02:14.3]}
14. Nd5 {[%clk 0:01:44.6]} 14... Nf4 {[%clk 0:02:08.7]} 15. Nxd4 {[%clk
0:00:57.1]} 15... Nxg2+ {[%clk 0:01:59.7]} 16. Kf1 {[%clk 0:00:52.1]} 16...
Nxe3+ {[%clk 0:01:58.4]} 17. Nxe3 {[%clk 0:00:48.5]} 17... exd4 {[%clk
0:01:44.3]} 18. Nd5 {[%clk 0:00:48]} 18... Bxd5 {[%clk 0:01:32.1]} 19. cxd5
{[%clk 0:00:35.7]} 19... Qh4 {[%clk 0:01:30]} 20. Bg4 {[%clk 0:00:26.5]} 20...
Bh6 {[%clk 0:01:16.7]} 21. Qb2 {[%clk 0:00:20.7]} 21... Be3 {[%clk 0:00:57.9]}
22. Rh2 {[%clk 0:00:20.9]} 22... Rf4 {[%clk 0:00:41.8]} 23. Kg1 {[%clk 0:00:19]}
23... Qg3+ {[%clk 0:00:37.1]} 24. Rg2 {[%clk 0:00:18.6]} 24... Bxf2+ {[%clk
0:00:35.4]} 25. Kh1 {[%clk 0:00:19.1]} 25... Qe3 {[%clk 0:00:30.6]} 26. Rf1
{[%clk 0:00:16.6]} 26... Raf8 {[%clk 0:00:30.3]} 27. Qe2 {[%clk 0:00:14]} 27...
Bh4 {[%clk 0:00:26.5]} 28. Be6+ {[%clk 0:00:12.3]} 28... Kg7 {[%clk 0:00:26.3]}
29. Rxf4 {[%clk 0:00:10.4]} 29... Qc1+ {[%clk 0:00:23.2]} 30. Kh2 {[%clk
0:00:10]} 30... Qxf4+ {[%clk 0:00:23.2]} 31. Kh1 {[%clk 0:00:09.7]} 31... Qc1+
{[%clk 0:00:23.8]} 32. Kh2 {[%clk 0:00:09.4]} 32... Rf1 {[%clk 0:00:24.1]} 0-1

[Event "Early-Titled-Tuesday-Blitz-October-17-2023"]
[Site "Chess.com"]
[Date "2023.10.17"]
[Round "7"]
[White "Aleksandar-Topalov"]
[Black "Actuary44"]
[Result "0-1"]
[WhiteElo "2337"]
[BlackElo "2513"]
[TimeControl "180+1"]
[EndTime "9:20:45 PDT"]
[Termination "Actuary44 won on time"]

1. b3 {[%clk 0:02:57.4]} 1... e5 {[%clk 0:02:59.7]} 2. Bb2 {[%clk 0:02:55.6]}
2... d6 {[%clk 0:03:00.4]} 3. d4 {[%clk 0:02:55.2]} 3... exd4 {[%clk 0:02:59.7]}
4. Qxd4 {[%clk 0:02:54.5]} 4... Nc6 {[%clk 0:02:59.2]} 5. Qf4 {[%clk 0:02:54.1]}
5... Nge7 {[%clk 0:02:52.9]} 6. Nc3 {[%clk 0:02:53.4]} 6... Ng6 {[%clk
0:02:52.9]} 7. Qg3 {[%clk 0:02:53.6]} 7... Be7 {[%clk 0:02:52]} 8. Nf3 {[%clk
0:02:53.4]} 8... O-O {[%clk 0:02:51]} 9. h4 {[%clk 0:02:53.4]} 9... h5 {[%clk
0:02:49.8]} 10. O-O-O {[%clk 0:02:51.4]} 10... Bg4 {[%clk 0:02:46.2]} 11. Nd5
{[%clk 0:02:46.8]} 11... a5 {[%clk 0:02:32.3]} 12. Kb1 {[%clk 0:02:39.5]} 12...
a4 {[%clk 0:02:32.3]} 13. e3 {[%clk 0:02:29.2]} 13... axb3 {[%clk 0:02:32.4]}
14. axb3 {[%clk 0:02:28.9]} 14... Nce5 {[%clk 0:02:25.3]} 15. Be2 {[%clk
0:02:18.3]} 15... c6 {[%clk 0:02:10]} 16. Nxe7+ {[%clk 0:02:14.9]} 16... Qxe7
{[%clk 0:02:10.9]} 17. Nxe5 {[%clk 0:02:11.9]} 17... Bxe2 {[%clk 0:01:58.8]} 18.
Nxg6 {[%clk 0:02:11.7]} 18... fxg6 {[%clk 0:01:58.1]} 19. Rxd6 {[%clk
0:02:07.5]} 19... Rxf2 {[%clk 0:01:47.5]} 20. Rxg6 {[%clk 0:02:05]} 20... Rf7
{[%clk 0:01:47.1]} 21. e4 {[%clk 0:01:26.8]} 21... Bg4 {[%clk 0:01:44.4]} 22.
Re1 {[%clk 0:01:12.3]} 22... Qb4 {[%clk 0:01:39.2]} 23. Qc3 {[%clk 0:01:06.9]}
23... Qe7 {[%clk 0:01:35.5]} 24. Rg5 {[%clk 0:00:57.5]} 24... Raf8 {[%clk
0:01:12.1]} 25. Qc4 {[%clk 0:00:52.5]} 25... Kh8 {[%clk 0:01:08.5]} 26. Qc3
{[%clk 0:00:38.1]} 26... Re8 {[%clk 0:00:56.6]} 27. e5 {[%clk 0:00:33.5]} 27...
Qe6 {[%clk 0:00:52.5]} 28. Qd3 {[%clk 0:00:28.1]} 28... Rf2 {[%clk 0:00:48.7]}
29. Rg6 {[%clk 0:00:24]} 29... Qf5 {[%clk 0:00:43.4]} 30. Qxf5 {[%clk
0:00:06.1]} 30... Bxf5 {[%clk 0:00:44.3]} 31. Rg5 {[%clk 0:00:06.4]} 31... Bxc2+
{[%clk 0:00:42.1]} 32. Kc1 {[%clk 0:00:05.6]} 32... g6 {[%clk 0:00:42]} 33. e6+
{[%clk 0:00:03.2]} 33... Kg8 {[%clk 0:00:42.4]} 34. e7 {[%clk 0:00:03.4]} 34...
Kf7 {[%clk 0:00:41.4]} 35. Rg3 {[%clk 0:00:02.8]} 35... Rxe7 {[%clk 0:00:39]}
36. Rxe7+ {[%clk 0:00:02.5]} 36... Kxe7 {[%clk 0:00:39.9]} 0-1

[Event "Early-Titled-Tuesday-Blitz-October-17-2023"]
[Site "Chess.com"]
[Date "2023.10.17"]
[Round "7"]
[White "eightbyeightchess"]
[Black "DanielTitichoca"]
[Result "0-1"]
[WhiteElo "2429"]
[BlackElo "2576"]
[TimeControl "180+1"]
[EndTime "9:20:46 PDT"]
[Termination "DanielTitichoca won by resignation"]

1. c4 {[%clk 0:03:00.9]} 1... Nf6 {[%clk 0:02:56.9]} 2. Nc3 {[%clk 0:03:01]}
2... e5 {[%clk 0:02:55.9]} 3. g3 {[%clk 0:03:00.7]} 3... Bb4 {[%clk 0:02:56.5]}
4. Bg2 {[%clk 0:03:00.9]} 4... O-O {[%clk 0:02:55.8]} 5. d3 {[%clk 0:02:59.3]}
5... Bxc3+ {[%clk 0:02:55.5]} 6. bxc3 {[%clk 0:02:59.5]} 6... h6 {[%clk
0:02:56.4]} 7. Nf3 {[%clk 0:02:59.5]} 7... d6 {[%clk 0:02:56.9]} 8. O-O {[%clk
0:02:59.3]} 8... Nc6 {[%clk 0:02:50.9]} 9. Rb1 {[%clk 0:02:58.6]} 9... Rb8
{[%clk 0:02:47]} 10. e4 {[%clk 0:02:57.6]} 10... b6 {[%clk 0:02:43.8]} 11. Ne1
{[%clk 0:02:35.3]} 11... Nd7 {[%clk 0:02:40.6]} 12. f4 {[%clk 0:02:34.9]} 12...
Qe7 {[%clk 0:02:31.1]} 13. Nf3 {[%clk 0:02:33.5]} 13... Nc5 {[%clk 0:02:29.6]}
14. Qe2 {[%clk 0:02:33.6]} 14... a5 {[%clk 0:02:24.3]} 15. Nh4 {[%clk
0:01:36.1]} 15... exf4 {[%clk 0:02:12.9]} 16. Rxf4 {[%clk 0:01:33.3]} 16... Bd7
{[%clk 0:01:52.2]} 17. Nf5 {[%clk 0:01:05]} 17... Bxf5 {[%clk 0:01:34.1]} 18.
Rxf5 {[%clk 0:01:05.9]} 18... Rbe8 {[%clk 0:01:27.7]} 19. Be3 {[%clk 0:00:52.5]}
19... g6 {[%clk 0:01:11.8]} 20. Rf3 {[%clk 0:00:24.7]} 20... Ne5 {[%clk
0:01:10.7]} 21. Bxh6 {[%clk 0:00:18.8]} 21... Nxf3+ {[%clk 0:01:10.4]} 22. Qxf3
{[%clk 0:00:19.3]} 22... f5 {[%clk 0:01:10.1]} 23. Bxf8 {[%clk 0:00:18.2]} 23...
Rxf8 {[%clk 0:01:11]} 24. exf5 {[%clk 0:00:13.2]} 24... Rxf5 {[%clk 0:01:11.5]}
25. Qa8+ {[%clk 0:00:13.2]} 25... Kg7 {[%clk 0:01:12]} 26. Be4 {[%clk
0:00:11.7]} 26... Nxe4 {[%clk 0:01:07.7]} 27. Qxe4 {[%clk 0:00:12.6]} 27... Qxe4
{[%clk 0:01:07.9]} 28. dxe4 {[%clk 0:00:12.9]} 28... Rc5 {[%clk 0:01:08.7]} 29.
Re1 {[%clk 0:00:09.9]} 29... Rxc4 {[%clk 0:01:09.1]} 30. e5 {[%clk 0:00:10.2]}
30... dxe5 {[%clk 0:01:08.2]} 31. Rxe5 {[%clk 0:00:11.1]} 31... Rxc3 {[%clk
0:01:08.3]} 32. g4 {[%clk 0:00:10.5]} 32... Rc2 {[%clk 0:01:07.3]} 33. Re7+
{[%clk 0:00:10.3]} 33... Kf6 {[%clk 0:01:06.7]} 34. Rd7 {[%clk 0:00:10.9]} 34...
Rxa2 {[%clk 0:01:04.9]} 35. Rxc7 {[%clk 0:00:11]} 35... Rb2 {[%clk 0:01:05.6]}
36. h4 {[%clk 0:00:11.2]} 36... a4 {[%clk 0:01:05.2]} 37. Ra7 {[%clk 0:00:09.8]}
37... b5 {[%clk 0:01:05.2]} 38. Ra6+ {[%clk 0:00:10.1]} 38... Kf7 {[%clk
0:01:04.6]} 39. h5 {[%clk 0:00:10]} 39... gxh5 {[%clk 0:01:04.5]} 40. gxh5
{[%clk 0:00:10.9]} 40... Kg7 {[%clk 0:01:04.1]} 41. Kf1 {[%clk 0:00:11.4]} 41...
Ra2 {[%clk 0:00:57.1]} 42. Ke1 {[%clk 0:00:10.8]} 42... b4 {[%clk 0:00:54.7]}
43. Kd1 {[%clk 0:00:10.3]} 43... b3 {[%clk 0:00:55.2]} 44. Kc1 {[%clk
0:00:10.5]} 44... a3 {[%clk 0:00:55.7]} 45. Rb6 {[%clk 0:00:06.1]} 45... Rc2+
{[%clk 0:00:52.8]} 46. Kb1 {[%clk 0:00:06.1]} 46... a2+ {[%clk 0:00:52.9]} 47.
Ka1 {[%clk 0:00:05.8]} 47... Rc1+ {[%clk 0:00:53.5]} 48. Kb2 {[%clk 0:00:06.3]}
48... a1=Q+ {[%clk 0:00:53.8]} 49. Kxb3 {[%clk 0:00:07.2]} 49... Rb1+ {[%clk
0:00:53.5]} 0-1

[Event "Early-Titled-Tuesday-Blitz-October-17-2023"]
[Site "Chess.com"]
[Date "2023.10.17"]
[Round "7"]
[White "masterofpuppets2"]
[Black "BelaKis"]
[Result "1-0"]
[WhiteElo "2517"]
[BlackElo "2196"]
[TimeControl "180+1"]
[EndTime "9:20:47 PDT"]
[Termination "masterofpuppets2 won on time"]

1. d4 {[%clk 0:03:00.9]} 1... Nf6 {[%clk 0:02:59.2]} 2. c4 {[%clk 0:03:00.8]}
2... g6 {[%clk 0:02:58.2]} 3. f3 {[%clk 0:03:00.9]} 3... Bg7 {[%clk 0:02:57.8]}
4. e4 {[%clk 0:03:01.2]} 4... d6 {[%clk 0:02:58.4]} 5. Nc3 {[%clk 0:03:01.8]}
5... O-O {[%clk 0:02:58.4]} 6. Be3 {[%clk 0:03:02.5]} 6... a6 {[%clk 0:02:58.8]}
7. Bd3 {[%clk 0:03:01.3]} 7... c5 {[%clk 0:02:58.4]} 8. Nge2 {[%clk 0:02:59.6]}
8... Nc6 {[%clk 0:02:57.5]} 9. Qd2 {[%clk 0:02:52.4]} 9... Nd7 {[%clk
0:02:55.1]} 10. Bc2 {[%clk 0:02:51.2]} 10... b5 {[%clk 0:02:42]} 11. dxc5 {[%clk
0:02:26.7]} 11... dxc5 {[%clk 0:02:31.2]} 12. cxb5 {[%clk 0:02:24.7]} 12... axb5
{[%clk 0:02:31.2]} 13. Nxb5 {[%clk 0:02:23.8]} 13... Ba6 {[%clk 0:02:26.7]} 14.
Nbc3 {[%clk 0:02:18.1]} 14... Nde5 {[%clk 0:02:08.8]} 15. Qxd8 {[%clk
0:01:33.6]} 15... Rfxd8 {[%clk 0:02:08.1]} 16. Bxc5 {[%clk 0:01:33.6]} 16...
Rab8 {[%clk 0:01:55]} 17. Rb1 {[%clk 0:01:20.7]} 17... Nd3+ {[%clk 0:01:37.1]}
18. Bxd3 {[%clk 0:01:19.3]} 18... Bxd3 {[%clk 0:01:37.2]} 19. Rd1 {[%clk
0:01:19]} 19... Rxb2 {[%clk 0:01:30.5]} 20. Rc1 {[%clk 0:00:43.5]} 20... Bxc3+
{[%clk 0:00:50.9]} 21. Nxc3 {[%clk 0:00:43.5]} 21... Rxg2 {[%clk 0:00:51]} 22.
Nd5 {[%clk 0:00:27.3]} 22... e6 {[%clk 0:00:31.5]} 23. Nf4 {[%clk 0:00:18.4]}
23... Rxa2 {[%clk 0:00:21.5]} 24. Bb6 {[%clk 0:00:18.6]} 24... Ne5 {[%clk
0:00:13.7]} 25. Bxd8 {[%clk 0:00:15.4]} 25... Nxf3+ {[%clk 0:00:13.9]} 26. Kd1
{[%clk 0:00:15.9]} 26... Bb5 {[%clk 0:00:11.3]} 27. Rc3 {[%clk 0:00:10.6]} 1-0

[Event "Early-Titled-Tuesday-Blitz-October-17-2023"]
[Site "Chess.com"]
[Date "2023.10.17"]
[Round "7"]
[White "DrCeltic"]
[Black "Roedor"]
[Result "0-1"]
[WhiteElo "2551"]
[BlackElo "2431"]
[TimeControl "180+1"]
[EndTime "9:20:50 PDT"]
[Termination "Roedor won on time"]

1. e4 {[%clk 0:03:00.1]} 1... e5 {[%clk 0:02:58.9]} 2. Nf3 {[%clk 0:03:00.1]}
2... Nc6 {[%clk 0:02:58.5]} 3. Bb5 {[%clk 0:02:59.9]} 3... Nf6 {[%clk
0:02:58.1]} 4. d3 {[%clk 0:02:59.8]} 4... Bc5 {[%clk 0:02:57.7]} 5. O-O {[%clk
0:03:00.2]} 5... Nd4 {[%clk 0:02:57.8]} 6. Ba4 {[%clk 0:03:00.4]} 6... O-O
{[%clk 0:02:55]} 7. Nxd4 {[%clk 0:03:00.9]} 7... Bxd4 {[%clk 0:02:54.4]} 8. Be3
{[%clk 0:03:00.6]} 8... Bb6 {[%clk 0:02:52.8]} 9. Nc3 {[%clk 0:02:59.8]} 9... d5
{[%clk 0:02:51.5]} 10. Bg5 {[%clk 0:02:59.9]} 10... c6 {[%clk 0:02:21.3]} 11.
Qf3 {[%clk 0:02:48.9]} 11... h6 {[%clk 0:02:18.6]} 12. Bxf6 {[%clk 0:02:45.6]}
12... Qxf6 {[%clk 0:02:19.5]} 13. Qxf6 {[%clk 0:02:44.3]} 13... gxf6 {[%clk
0:02:20.4]} 14. exd5 {[%clk 0:02:44.7]} 14... cxd5 {[%clk 0:02:19.8]} 15. Nxd5
{[%clk 0:02:44.9]} 15... Kg7 {[%clk 0:02:20.5]} 16. Nxb6 {[%clk 0:02:33]} 16...
axb6 {[%clk 0:02:21.4]} 17. Bb3 {[%clk 0:02:33.4]} 17... Be6 {[%clk 0:02:19.9]}
18. Bxe6 {[%clk 0:02:25]} 18... fxe6 {[%clk 0:02:20.8]} 19. Rfe1 {[%clk
0:02:25.7]} 19... Rfc8 {[%clk 0:02:20]} 20. Re2 {[%clk 0:02:21.4]} 20... b5
{[%clk 0:02:18.5]} 21. g3 {[%clk 0:02:08.5]} 21... Kg6 {[%clk 0:02:17.5]} 22. c3
{[%clk 0:02:03]} 22... Ra4 {[%clk 0:02:15.4]} 23. Kg2 {[%clk 0:01:58.1]} 23...
Rd8 {[%clk 0:02:15]} 24. Re3 {[%clk 0:01:56.1]} 24... b4 {[%clk 0:02:11.4]} 25.
c4 {[%clk 0:01:49.7]} 25... Rda8 {[%clk 0:02:02]} 26. f4 {[%clk 0:01:45.6]}
26... Rxa2 {[%clk 0:01:55.1]} 27. Rb1 {[%clk 0:01:29.3]} 27... exf4 {[%clk
0:01:44.7]} 28. Rxe6 {[%clk 0:01:28.3]} 28... fxg3 {[%clk 0:01:44.6]} 29. hxg3
{[%clk 0:01:28.5]} 29... R8a6 {[%clk 0:01:44.1]} 30. Re7 {[%clk 0:01:24]} 30...
b5 {[%clk 0:01:19.2]} 31. c5 {[%clk 0:01:18.2]} 31... b3 {[%clk 0:01:18.7]} 32.
d4 {[%clk 0:01:02.1]} 32... R6a4 {[%clk 0:01:15.6]} 33. Rd7 {[%clk 0:00:59.2]}
33... Rc4 {[%clk 0:01:15.5]} 34. Kf3 {[%clk 0:00:53.9]} 34... Kf5 {[%clk
0:01:14.7]} 35. Ke3 {[%clk 0:00:44.2]} 35... Rc2 {[%clk 0:01:13]} 36. Rd6 {[%clk
0:00:42.3]} 36... Raxb2 {[%clk 0:01:04.3]} 37. Rf1+ {[%clk 0:00:41.6]} 37... Kg5
{[%clk 0:01:02.1]} 38. Rfxf6 {[%clk 0:00:31.9]} 38... Rc3+ {[%clk 0:01:01.5]}
39. Ke4 {[%clk 0:00:31.5]} 39... Re2+ {[%clk 0:01:01]} 40. Kd5 {[%clk
0:00:31.7]} 40... b2 {[%clk 0:01:01.5]} 41. Rg6+ {[%clk 0:00:24.2]} 41... Kh5
{[%clk 0:01:01.3]} 42. Rxh6+ {[%clk 0:00:23]} 42... Kg4 {[%clk 0:01:01.8]} 43.
Rdg6+ {[%clk 0:00:13.8]} 43... Kf3 {[%clk 0:01:02.1]} 44. Rh1 {[%clk 0:00:11.8]}
44... Rc1 {[%clk 0:01:01.7]} 45. Rf6+ {[%clk 0:00:12.1]} 45... Kg2 {[%clk
0:01:01.1]} 0-1

[Event "Early-Titled-Tuesday-Blitz-October-17-2023"]
[Site "Chess.com"]
[Date "2023.10.17"]
[Round "7"]
[White "SanchezKelvin"]
[Black "Cambek64"]
[Result "0-1"]
[WhiteElo "2560"]
[BlackElo "2435"]
[TimeControl "180+1"]
[EndTime "9:20:51 PDT"]
[Termination "Cambek64 won by resignation"]

1. e4 {[%clk 0:03:00.9]} 1... e6 {[%clk 0:02:57.7]} 2. d4 {[%clk 0:02:59.8]}
2... d5 {[%clk 0:02:58.2]} 3. Nd2 {[%clk 0:02:59.6]} 3... Nc6 {[%clk 0:02:58.2]}
4. Ngf3 {[%clk 0:02:59.2]} 4... Nf6 {[%clk 0:02:58.6]} 5. e5 {[%clk 0:02:59.6]}
5... Nd7 {[%clk 0:02:59.3]} 6. Bb5 {[%clk 0:02:59.7]} 6... a6 {[%clk 0:02:56.8]}
7. Bxc6 {[%clk 0:02:59.9]} 7... bxc6 {[%clk 0:02:57.4]} 8. O-O {[%clk
0:03:00.1]} 8... c5 {[%clk 0:02:57.9]} 9. Nb3 {[%clk 0:02:55.2]} 9... cxd4
{[%clk 0:02:54.9]} 10. Nbxd4 {[%clk 0:02:50.2]} 10... c5 {[%clk 0:02:54.9]} 11.
Bg5 {[%clk 0:02:50]} 11... Qc7 {[%clk 0:02:50.6]} 12. Nb3 {[%clk 0:02:40.1]}
12... Nxe5 {[%clk 0:02:49.3]} 13. Nfd2 {[%clk 0:02:30]} 13... Bd6 {[%clk
0:02:43.4]} 14. h3 {[%clk 0:02:29.2]} 14... O-O {[%clk 0:02:41.6]} 15. Re1
{[%clk 0:02:25.6]} 15... Bb7 {[%clk 0:02:35.8]} 16. Bf4 {[%clk 0:02:19.7]} 16...
Rfd8 {[%clk 0:02:25.5]} 17. Qh5 {[%clk 0:02:12.6]} 17... Ng6 {[%clk 0:02:14.9]}
18. Bxd6 {[%clk 0:02:07.8]} 18... Rxd6 {[%clk 0:02:05.3]} 19. c4 {[%clk
0:02:07.2]} 19... Rad8 {[%clk 0:02:00.1]} 20. Rac1 {[%clk 0:02:02.8]} 20... dxc4
{[%clk 0:01:51.4]} 21. Nxc4 {[%clk 0:02:02.2]} 21... Rd5 {[%clk 0:01:46.6]} 22.
Qg4 {[%clk 0:02:01.5]} 22... h5 {[%clk 0:01:45]} 23. Qg3 {[%clk 0:01:48.1]}
23... Qe7 {[%clk 0:01:38.4]} 24. Qe3 {[%clk 0:01:44.7]} 24... Rg5 {[%clk
0:01:29.7]} 25. g3 {[%clk 0:01:26.2]} 25... Nh4 {[%clk 0:01:09.8]} 26. Red1
{[%clk 0:01:25.6]} 26... Nf3+ {[%clk 0:00:54.9]} 27. Kf1 {[%clk 0:01:25]} 27...
Rxd1+ {[%clk 0:00:53.6]} 28. Rxd1 {[%clk 0:01:24.7]} 28... h4 {[%clk 0:00:53.4]}
29. g4 {[%clk 0:01:21.2]} 29... Bd5 {[%clk 0:00:50.4]} 30. Nba5 {[%clk
0:01:15.6]} 30... Qf6 {[%clk 0:00:42.9]} 31. Qc3 {[%clk 0:01:07.4]} 31... Nd4
{[%clk 0:00:41.2]} 32. b3 {[%clk 0:01:02.1]} 32... Qf4 {[%clk 0:00:39.2]} 33.
Ke1 {[%clk 0:00:55.3]} 33... Bf3 {[%clk 0:00:36.1]} 34. Rd3 {[%clk 0:00:53.7]}
34... Be4 {[%clk 0:00:24.5]} 35. Re3 {[%clk 0:00:51.3]} 35... Qh2 {[%clk
0:00:24.1]} 36. Nd2 {[%clk 0:00:42.9]} 36... Qg1+ {[%clk 0:00:23.9]} 37. Nf1
{[%clk 0:00:42.5]} 37... Bg2 {[%clk 0:00:23.6]} 38. Qc4 {[%clk 0:00:42.6]} 38...
Rd5 {[%clk 0:00:23.2]} 39. Qxa6 {[%clk 0:00:34.1]} 39... Nf3+ {[%clk 0:00:22.5]}
40. Rxf3 {[%clk 0:00:29.4]} 40... Bxf3 {[%clk 0:00:22.5]} 0-1

[Event "Early-Titled-Tuesday-Blitz-October-17-2023"]
[Site "Chess.com"]
[Date "2023.10.17"]
[Round "7"]
[White "Rital44"]
[Black "falzehope0"]
[Result "1-0"]
[WhiteElo "2484"]
[BlackElo "2325"]
[TimeControl "180+1"]
[EndTime "9:20:54 PDT"]
[Termination "Rital44 won by checkmate"]

1. d4 {[%clk 0:03:00.9]} 1... e6 {[%clk 0:02:59.5]} 2. c4 {[%clk 0:03:01]} 2...
d5 {[%clk 0:02:59.3]} 3. Nf3 {[%clk 0:02:47.9]} 3... c6 {[%clk 0:02:59.2]} 4. e3
{[%clk 0:02:46.9]} 4... Bd6 {[%clk 0:02:59.3]} 5. Nbd2 {[%clk 0:02:33.4]} 5...
f5 {[%clk 0:02:58.9]} 6. g3 {[%clk 0:02:22.1]} 6... Nf6 {[%clk 0:02:58.4]} 7.
Bg2 {[%clk 0:02:10.2]} 7... O-O {[%clk 0:02:57.7]} 8. O-O {[%clk 0:02:05.3]}
8... Nbd7 {[%clk 0:02:57.3]} 9. b3 {[%clk 0:01:57.8]} 9... Ne4 {[%clk
0:02:49.5]} 10. Bb2 {[%clk 0:01:54.2]} 10... Qf6 {[%clk 0:02:49]} 11. Qe2 {[%clk
0:01:47]} 11... g5 {[%clk 0:02:45.3]} 12. Nxe4 {[%clk 0:01:42.9]} 12... fxe4
{[%clk 0:02:44.7]} 13. Nd2 {[%clk 0:01:43.6]} 13... Qh6 {[%clk 0:02:16.3]} 14.
f3 {[%clk 0:01:37.4]} 14... exf3 {[%clk 0:02:14.6]} 15. Rxf3 {[%clk 0:01:28]}
15... Rxf3 {[%clk 0:02:12.9]} 16. Qxf3 {[%clk 0:01:25.1]} 16... Nf8 {[%clk
0:01:55.5]} 17. e4 {[%clk 0:01:17.3]} 17... Bb4 {[%clk 0:01:42.3]} 18. Nf1
{[%clk 0:01:09.4]} 18... dxc4 {[%clk 0:01:35.8]} 19. bxc4 {[%clk 0:01:08.2]}
19... b6 {[%clk 0:01:31.3]} 20. Ne3 {[%clk 0:01:07.9]} 20... e5 {[%clk
0:01:26.1]} 21. dxe5 {[%clk 0:00:55.3]} 21... Bc5 {[%clk 0:01:20.6]} 22. Kh1
{[%clk 0:00:42.4]} 22... Bxe3 {[%clk 0:01:16.8]} 23. Qxe3 {[%clk 0:00:43.3]}
23... Be6 {[%clk 0:01:14.6]} 24. Rd1 {[%clk 0:00:40.9]} 24... Qh5 {[%clk
0:01:03.1]} 25. Rd6 {[%clk 0:00:40.1]} 25... Rc8 {[%clk 0:00:58.3]} 26. Bf3
{[%clk 0:00:40.2]} 26... g4 {[%clk 0:00:56.4]} 27. Be2 {[%clk 0:00:40.5]} 27...
Qf7 {[%clk 0:00:53]} 28. Qf4 {[%clk 0:00:31.8]} 28... Ng6 {[%clk 0:00:47.4]} 29.
Qxf7+ {[%clk 0:00:29.4]} 29... Kxf7 {[%clk 0:00:48.3]} 30. Rxe6 {[%clk
0:00:29.8]} 30... Kxe6 {[%clk 0:00:35.5]} 31. Bxg4+ {[%clk 0:00:29.5]} 31... Ke7
{[%clk 0:00:35.9]} 32. Bxc8 {[%clk 0:00:30.4]} 32... Nf8 {[%clk 0:00:34.7]} 33.
Bf5 {[%clk 0:00:30.2]} 33... c5 {[%clk 0:00:35.1]} 34. Kg2 {[%clk 0:00:29.9]}
34... Ne6 {[%clk 0:00:32.9]} 35. Bxe6 {[%clk 0:00:30]} 35... Kxe6 {[%clk
0:00:33]} 36. Kf3 {[%clk 0:00:30.9]} 36... a6 {[%clk 0:00:29]} 37. a4 {[%clk
0:00:29.3]} 37... a5 {[%clk 0:00:26.3]} 38. Kf4 {[%clk 0:00:29.4]} 38... h6
{[%clk 0:00:25.9]} 39. h4 {[%clk 0:00:29.3]} 39... h5 {[%clk 0:00:25.8]} 40. Kg5
{[%clk 0:00:29.4]} 40... Kf7 {[%clk 0:00:25.4]} 41. Kxh5 {[%clk 0:00:30.3]}
41... Ke6 {[%clk 0:00:26]} 42. Kg5 {[%clk 0:00:31.2]} 42... Kf7 {[%clk
0:00:26.5]} 43. h5 {[%clk 0:00:32.1]} 43... Ke7 {[%clk 0:00:26.7]} 44. h6 {[%clk
0:00:33]} 44... Kf7 {[%clk 0:00:27.2]} 45. h7 {[%clk 0:00:33.5]} 45... Kg7
{[%clk 0:00:27.3]} 46. e6+ {[%clk 0:00:34.4]} 46... Kxh7 {[%clk 0:00:27.6]} 47.
e7 {[%clk 0:00:34.9]} 47... b5 {[%clk 0:00:27.6]} 48. e8=Q {[%clk 0:00:33.9]}
48... bxc4 {[%clk 0:00:26.7]} 49. Qh8# {[%clk 0:00:34.8]} 1-0